bitfinex-derivatives/quotes_ETHF0:USTF0_20230902
["timestamp","ask_amount","ask_price","bid_price","bid_amount"]
[1693689459968,1.6660928,1635.7,1635.6,0.0611]
[1693689460166,0.0611,1635.7,1635.6,5.33138142]
[1693689460361,0.0611,1635.7,1635.6,11.85885816]
[1693689465674,0.0611,1635.7,1635.6,5.33138142]
[1693689467173,0.07002297,1635.7,1635.6,5.33138142]
[1693689467576,2.93718649,1635.7,1635.6,5.33138142]
[1693689469679,2.93718649,1635.7,1635.6,1.32801756]
[1693689469878,2.93718649,1635.7,1635.6,0.0611]
[1693689470080,2.93718649,1635.7,1635.6,1.32801756]
[1693689470879,2.93718649,1635.7,1635.6,5.33138142]
[1693689471877,2.93718649,1635.7,1635.6,1.32801756]
[1693689472676,2.93718649,1635.7,1635.6,4.52751463]
[1693689472877,2.93718649,1635.7,1635.6,4.52751414]
[1693689474977,0.07002297,1635.7,1635.6,4.52751414]
[1693689475674,2.93718649,1635.7,1635.6,3.26059658]
[1693689478082,2.93718649,1635.7,1635.6,4.52751414]
[1693689478586,0.07002297,1635.7,1635.6,4.52751414]
[1693689480182,2.93718649,1635.7,1635.6,4.52751414]
[1693689480483,2.93718649,1635.7,1635.6,3.26059658]
[1693689481382,2.93718649,1635.7,1635.6,4.52751414]
[1693689481783,2.93718649,1635.7,1635.6,3.26059658]
[1693689483491,2.93718649,1635.7,1635.6,4.06059082]
[1693689487201,2.93718649,1635.7,1635.6,5.32750838]
[1693689487792,2.93718649,1635.7,1635.6,4.06059082]
[1693689487997,2.93718649,1635.7,1635.6,5.32750838]
[1693689489504,2.93718649,1635.7,1635.6,4.06059082]
[1693689490000,2.93718649,1635.7,1635.6,5.32750838]
[1693689490497,2.93718649,1635.7,1635.6,1.32801756]
[1693689490702,2.93718649,1635.7,1635.6,3.26058033]
[1693689492602,4.5402189,1635.7,1635.6,2.46113904]
[1693689493906,4.5402189,1635.7,1635.6,0.0611]
[1693689494303,4.5402189,1635.7,1635.6,2.46135813]
[1693689494508,4.5402189,1635.7,1635.6,0.0611]
[1693689494703,4.5402189,1635.7,1635.6,3.26058033]
[1693689495507,4.5402189,1635.7,1635.6,4.52749789]
[1693689496210,4.5402189,1635.7,1635.6,3.26058033]
[1693689496409,4.5402189,1635.7,1635.6,4.52749789]
[1693689497713,2.93718649,1635.7,1635.6,0.0611]
[1693689498516,2.93718649,1635.7,1635.6,4.06059082]
[1693689499216,2.93718649,1635.7,1635.6,5.32750838]
[1693689499913,2.93718649,1635.7,1635.6,4.06059082]
[1693689501316,2.93718649,1635.7,1635.6,5.32750838]
[1693689502113,0.07002297,1635.7,1635.6,5.32750838]
[1693689502507,1.67305538,1635.7,1635.6,5.32750838]
[1693689503517,4.5402189,1635.7,1635.6,5.32750838]
[1693689505726,5.3417351,1635.7,1635.6,4.53166295]
[1693689506623,5.3417351,1635.7,1635.6,3.26474539]
[1693689510222,5.3417351,1635.7,1635.6,4.53166295]
[1693689511121,5.3417351,1635.7,1635.6,3.26474539]
[1693689512123,5.3417351,1635.7,1635.6,4.53166295]
[1693689512723,4.54219629,1635.7,1635.6,5.32750838]
[1693689513026,1.67503277,1635.7,1635.6,5.32750838]
[1693689513418,4.54219629,1635.7,1635.6,5.32750838]
[1693689513823,4.54219629,1635.7,1635.6,4.06059082]
[1693689515527,4.54219629,1635.7,1635.6,5.32750838]
[1693689517028,4.54219629,1635.7,1635.6,4.06059082]
[1693689518132,4.54219629,1635.7,1635.6,5.32750838]
[1693689521630,4.54219629,1635.7,1635.6,4.06059082]
[1693689521931,4.54219629,1635.7,1635.6,5.32750838]
[1693689522523,4.54219629,1635.7,1635.6,4.06059082]
[1693689527838,5.3417351,1635.7,1635.6,3.2647079]
[1693689528239,5.3417351,1635.7,1635.6,0.0611]
[1693689533447,5.3417351,1635.7,1635.6,4.06059082]
[1693689535342,5.3417351,1635.7,1635.6,5.32750838]
[1693689535846,4.54247354,1635.7,1635.6,4.06059082]
[1693689536345,4.54247354,1635.7,1635.6,5.32750838]
[1693689536948,4.54247354,1635.7,1635.6,4.06059082]
[1693689538147,4.54247354,1635.7,1635.6,5.32750838]
[1693689538947,4.54247354,1635.7,1635.6,4.06059082]
[1693689539247,1.67531002,1635.7,1635.6,5.32750838]
[1693689540248,1.67531002,1635.7,1635.6,1.32801756]
[1693689540447,4.54247354,1635.7,1635.6,0.0611]
[1693689541249,4.54247354,1635.7,1635.6,1.32801756]
[1693689541741,4.54247354,1635.7,1635.6,0.0611]
[1693689542136,4.54247354,1635.7,1635.6,1.32801756]
[1693689542842,4.48137354,1635.7,1635.6,0.0611]
[1693689543055,4.80909723,1636.4,1636.3,0.0611]
[1693689543242,1.52693407,1636.4,1636.3,3.26395379]
[1693689543550,5.61061344,1636.8,1636.3,3.26395379]
[1693689543551,2.40007098,1637.1,1636.9,0.0611]
[1693689543843,1.59993562,1637.7,1637.4,0.0611]
[1693689544042,0.02,1638.0,1637.6,0.0611]
[1693689544237,20.34840938,1638.4,1637.6,0.0611]
[1693689544238,13.795,1638.4,1638.1,0.0611]
[1693689544447,3.40170938,1638.8,1638.5,10.0]
[1693689544638,12.44963914,1639.2,1638.5,3.71903852]
[1693689544639,13.795,1639.2,1638.5,3.71903852]
[1693689544840,13.1846,1639.2,1638.7,5.521]
[1693689545041,13.0,1639.2,1638.8,3.05357512]
[1693689545343,5.521,1639.5,1639.3,7.63254654]
[1693689545546,11.042,1639.4,1638.8,6.90159247]
[1693689545850,5.521,1638.9,1638.7,8.79887982]
[1693689546051,10.6581,1638.8,1638.7,8.79887982]
[1693689546250,7.79093648,1638.8,1638.7,8.79887982]
[1693689546446,10.6581,1638.8,1638.7,9.32771792]
[1693689546748,10.6581,1638.8,1638.7,8.79887982]
[1693689546944,10.6581,1638.8,1638.5,2.13730966]
[1693689547345,13.6871,1638.8,1638.5,2.13730966]
[1693689547850,13.6871,1638.8,1638.7,7.86991144]
[1693689549447,13.6871,1638.8,1638.7,14.15404399]
[1693689549848,13.6871,1638.8,1638.7,6.28413255]
[1693689550552,13.6871,1638.8,1638.7,5.4909917]
[1693689550944,10.9405,1638.9,1638.7,3.0]
[1693689551142,0.0060487,1638.8,1638.7,6.28413255]
[1693689551354,0.0060487,1638.8,1638.7,9.28413255]
[1693689551551,0.0060487,1638.8,1638.7,8.48264167]
[1693689551856,2.27598518,1638.8,1638.7,8.48264167]
[1693689552554,2.27598518,1638.8,1638.7,7.69346962]
[1693689553454,8.94579298,1638.9,1638.8,2.86716352]
[1693689553653,11.81295649,1638.9,1638.8,3.90716916]
[1693689554049,11.8185476,1638.9,1638.8,3.90716916]
[1693689554452,11.8185476,1638.9,1638.8,3.12341372]
[1693689555149,2.84482065,1638.9,1638.8,3.12341372]
[1693689555353,2.84482065,1638.9,1638.8,5.99057724]
[1693689555656,5.71198416,1638.9,1638.8,2.3402357]
[1693689556554,5.71198416,1638.9,1638.8,1.55932034]
[1693689558254,5.71198416,1638.9,1638.8,3.89955604]
[1693689558455,5.71198416,1638.9,1638.8,1.55932034]
[1693689559854,5.71198416,1638.9,1638.8,4.42648386]
[1693689560259,2.5637,1639.0,1638.8,4.42648386]
[1693689560557,8.55,1638.9,1638.8,2.86716352]
[1693689560757,8.55,1638.9,1638.7,6.89035682]
[1693689560758,8.55,1638.9,1638.7,4.62042034]
[1693689560957,8.55,1638.9,1638.7,7.48758386]
[1693689561154,0.51325945,1638.8,1638.7,7.48758386]
[1693689561360,1.43007493,1638.9,1638.7,9.75752034]
[1693689562061,0.00495542,1638.8,1638.7,9.75752034]
[1693689562263,0.52701646,1638.8,1638.7,8.1982]
[1693689562964,0.52701646,1638.8,1638.7,5.92826352]
[1693689563163,1.65909302,1638.8,1638.7,5.92826352]
[1693689564859,0.52701646,1638.8,1638.7,5.92826352]
[1693689565260,16.53418686,1639.2,1639.1,4.76353738]
[1693689565457,26.21626342,1639.2,1639.1,4.76353738]
[1693689566055,26.22106026,1639.2,1639.1,4.76353738]
[1693689567361,23.16606026,1639.2,1639.1,4.76353738]
[1693689567768,29.28106026,1639.2,1639.1,4.76353738]
[1693689569263,29.28106026,1639.2,1638.7,3.0611]
[1693689569564,5.495,1638.9,1638.7,3.0611]
[1693689569768,1.13207656,1638.8,1638.7,3.0611]
[1693689570060,4.40407141,1638.9,1638.7,5.92826352]
[1693689570266,5.495,1638.9,1638.7,2.92826352]
[1693689570463,5.495,1638.9,1638.7,5.92826352]
[1693689571169,0.00421683,1638.8,1638.7,5.92826352]
[1693689571963,5.495,1638.9,1638.7,5.92826352]
[1693689573669,5.495,1638.9,1638.7,2.92826352]
[1693689573966,5.495,1638.9,1638.7,5.92826352]
[1693689574562,3.35773671,1638.9,1638.7,5.92826352]
[1693689574964,3.35773671,1638.9,1638.7,7.48758386]
[1693689575164,12.58048113,1639.2,1638.7,5.92826352]
[1693689575470,12.58048113,1639.2,1639.1,6.10647884]
[1693689575670,18.07548113,1639.2,1639.1,6.10647884]
[1693689578170,18.07955524,1639.2,1639.1,6.10647884]
[1693689582071,24.19455524,1639.2,1639.1,6.10647884]
[1693689582569,24.19455524,1639.2,1639.1,7.66579918]
[1693689583468,24.19455524,1639.2,1639.1,11.50003591]
[1693689583870,24.19455524,1639.2,1639.1,9.15980021]
[1693689584070,22.66789689,1639.2,1639.1,9.15980021]
[1693689584573,22.66789689,1639.2,1639.1,13.06696937]
[1693689585176,12.10685374,1639.2,1639.1,13.06696937]
[1693689585467,12.10685374,1639.2,1639.1,13.85326983]
[1693689585977,13.04139979,1639.2,1639.1,13.85326983]
[1693689588270,13.04139979,1639.2,1639.1,16.22944933]
[1693689589681,13.04139979,1639.2,1639.1,9.15980021]
[1693689590174,8.46143439,1639.2,1639.1,9.15980021]
[1693689591681,8.94407424,1639.2,1639.1,9.15980021]
[1693689592070,8.94407424,1639.2,1638.8,8.76245664]
[1693689592071,5.495,1639.0,1638.8,8.76245664]
[1693689592274,5.495,1638.9,1638.8,8.76245664]
[1693689592477,18.691,1639.1,1638.9,3.47884958]
[1693689592676,18.691,1639.1,1639.0,3.05333626]
[1693689593080,18.69506611,1639.1,1639.0,3.05333626]
[1693689595185,8.69506611,1639.1,1639.0,3.05333626]
[1693689602285,8.69506611,1639.1,1639.0,4.7804358]
[1693689602674,8.69506611,1639.1,1639.0,7.83377206]
[1693689603475,8.69506611,1639.1,1639.0,3.18677408]
[1693689603681,8.69506611,1639.1,1639.0,6.24011034]
[1693689608885,8.69506611,1639.1,1638.5,5.5771751]
[1693689608886,16.115,1638.6,1638.5,5.5771751]
[1693689609093,6.115,1638.5,1638.3,0.061]
[1693689609281,0.061,1638.3,1638.0,13.54456811]
[1693689609585,5.495,1638.1,1637.9,24.51196112]
[1693689609792,6.115,1638.3,1638.0,2.26993648]
[1693689610093,0.00397802,1638.0,1637.9,5.86716352]
[1693689610281,5.49897802,1638.0,1637.9,5.86716352]
[1693689610591,5.49897802,1638.0,1637.9,2.86716352]
[1693689610791,5.49897802,1638.0,1637.9,3.0]
[1693689611192,5.49897802,1638.0,1637.9,5.86716352]
[1693689611894,5.49897802,1638.0,1637.9,3.0]
[1693689612093,5.49897802,1638.0,1637.9,5.86716352]
[1693689612282,5.49897802,1638.0,1637.8,2.26993648]
[1693689612485,5.495,1637.9,1637.7,3.0]
[1693689613789,5.495,1637.9,1637.7,9.3739144]
[1693689613991,0.00396199,1637.8,1637.7,9.3739144]
[1693689614288,0.00396199,1637.8,1637.7,12.24107792]
[1693689614693,5.495,1637.9,1637.8,0.06892398]
[1693689615091,5.49881762,1637.9,1637.8,0.06892398]
[1693689620194,2.74974994,1637.9,1637.8,0.06892398]
[1693689621298,2.74974994,1637.9,1637.8,5.62572039]
[1693689623395,3.22759749,1637.9,1637.8,5.62572039]
[1693689624100,1.70033374,1637.9,1637.8,8.49288391]
[1693689625300,1.70033374,1637.9,1637.8,5.62572039]
[1693689625601,1.70033374,1637.9,1637.8,0.06892398]
[1693689625798,7.87633374,1637.9,1637.8,0.00792398]
[1693689626003,1.76133374,1637.9,1637.8,4.76971353]
[1693689627202,7.87633374,1637.9,1637.8,4.76971353]
[1693689627805,7.87633374,1637.9,1637.8,0.00792398]
[1693689628203,7.87633374,1637.9,1637.8,5.5622714]
[1693689628801,7.87633374,1637.9,1637.8,8.61704435]
[1693689630002,17.87633374,1637.9,1637.8,7.8222431]
[1693689630905,17.87633374,1637.9,1637.8,3.06269693]
[1693689631703,17.87633374,1637.9,1637.8,8.61704435]
[1693689633905,17.87633374,1637.9,1637.8,7.82066365]
[1693689634802,14.21055787,1637.9,1637.8,10.68782717]
[1693689635008,14.21546067,1637.9,1637.8,7.82066365]
[1693689635406,5.4999028,1637.9,1637.8,11.54530787]
[1693689636509,5.4999028,1637.9,1637.8,12.36487485]
[1693689639110,5.98350118,1637.9,1637.8,12.36487485]
[1693689639715,3.8453716,1637.9,1637.8,12.36487485]
[1693689640208,3.85008583,1637.9,1637.8,12.35695087]
[1693689642117,5.98331261,1637.9,1637.8,12.35695087]
[1693689642517,5.98331261,1637.9,1637.8,9.48978735]
[1693689642818,5.98331261,1637.9,1637.8,12.35695087]
[1693689643420,5.98331261,1637.9,1637.8,3.11587295]
[1693689643616,5.98331261,1637.9,1637.8,10.28652666]
[1693689645019,5.98331261,1637.9,1637.8,13.15369018]
[1693689645223,3.23423995,1637.9,1637.8,13.15369018]
[1693689646032,3.23877286,1637.9,1637.8,13.15369018]
[1693689646814,3.23877286,1637.9,1637.8,5.98303647]
[1693689647216,3.23877286,1637.9,1637.8,10.28652666]
[1693689647417,3.23877286,1637.9,1637.8,16.63965475]
[1693689647618,3.23877286,1637.9,1637.8,12.33616456]
[1693689648629,3.72270313,1637.9,1637.8,12.33616456]
[1693689651923,3.72270313,1637.9,1637.8,9.46900104]
[1693689652326,3.72270313,1637.9,1637.8,12.33616456]
[1693689653828,3.72270313,1637.9,1637.8,13.15369018]
[1693689656022,0.06181118,1637.9,1637.8,5.98303647]
[1693689656225,0.00453291,1637.9,1637.8,13.95042948]
[1693689656625,0.00453291,1637.9,1637.8,21.12305963]
[1693689656831,0.00453291,1637.9,1637.8,13.15566662]
[1693689657027,33.64943496,1638.1,1637.9,0.0611]
[1693689657227,33.64943496,1638.1,1638.0,5.57893919]
[1693689657429,39.14443496,1638.1,1638.0,5.57893919]
[1693689657628,39.14443496,1638.1,1638.0,8.63371214]
[1693689657833,39.62603704,1638.1,1638.0,8.63371214]
[1693689659131,39.63041149,1638.1,1638.0,8.63371214]
[1693689662544,39.63041149,1638.1,1638.0,7.83689781]
[1693689662839,39.63041149,1638.1,1638.0,3.05477295]
[1693689663048,39.63041149,1638.1,1638.0,4.78207639]
[1693689663442,39.63041149,1638.1,1638.0,7.83684934]
[1693689663641,39.63041149,1638.1,1638.0,3.05477295]
[1693689664238,38.10315725,1638.1,1638.0,3.05477295]
[1693689667545,38.10315725,1638.1,1637.9,4.84317639]
[1693689667747,32.60815725,1638.1,1638.0,3.05477295]
[1693689667944,38.10315725,1638.1,1638.0,3.05477295]
[1693689668452,38.10315725,1638.1,1637.9,0.0611]
[1693689668647,32.60815725,1638.1,1638.0,3.05477295]
[1693689668843,38.10315725,1638.1,1638.0,3.05477295]
[1693689669145,37.18682222,1638.1,1638.0,3.05477295]
[1693689669448,37.18682222,1638.1,1638.0,3.98487554]
[1693689669649,37.18682222,1638.1,1637.9,3.11587295]
[1693689669846,31.69182222,1638.1,1638.0,3.05477295]
[1693689670048,37.18682222,1638.1,1638.0,3.05477295]
[1693689671155,37.18682222,1638.1,1637.9,4.84317639]
[1693689671358,31.69182222,1638.1,1638.0,3.05477295]
[1693689671653,37.18682222,1638.1,1638.0,3.05477295]
[1693689680963,37.18682222,1638.1,1638.0,4.78207639]
[1693689681162,37.18682222,1638.1,1638.0,7.83684934]
[1693689685269,37.18682222,1638.1,1638.0,10.70401286]
[1693689686368,37.18682222,1638.1,1638.0,3.05477295]
[1693689691677,37.18682222,1638.1,1638.0,5.92193647]
[1693689691877,31.69182222,1638.1,1638.0,5.92193647]
[1693689692575,31.69182222,1638.1,1638.0,3.05477295]
[1693689693273,31.69182222,1638.1,1638.0,7.83684934]
[1693689694474,31.69182222,1638.1,1638.0,10.70401286]
[1693689694971,31.69182222,1638.1,1638.0,7.83684934]
[1693689695274,31.69182222,1638.1,1638.0,10.70401286]
[1693689696075,31.69182222,1638.1,1638.0,7.83684934]
[1693689697477,31.69182222,1638.1,1638.0,10.70401286]
[1693689698077,31.69182222,1638.1,1638.0,7.83684934]
[1693689698581,31.69182222,1638.1,1638.0,10.70401286]
[1693689698978,31.69182222,1638.1,1638.0,7.83684934]
[1693689700380,31.69182222,1638.1,1638.0,10.70401286]
[1693689700870,31.69182222,1638.1,1638.0,7.83684934]
[1693689701273,31.69182222,1638.1,1638.0,10.70401286]
[1693689702678,31.69182222,1638.1,1638.0,7.83684934]
[1693689703284,31.69182222,1638.1,1638.0,10.70401286]
[1693689703784,31.69182222,1638.1,1638.0,7.83684934]
[1693689704181,30.16463113,1638.1,1638.0,10.70401286]
[1693689704983,30.16463113,1638.1,1638.0,7.83684934]
[1693689705389,35.65963113,1638.1,1638.0,3.05477295]
[1693689706484,36.56001965,1638.1,1638.0,3.05477295]
[1693689707387,39.08471965,1638.1,1638.0,3.05477295]
[1693689709879,39.08471965,1638.1,1638.0,7.04302182]
[1693689722009,39.08471965,1638.1,1637.9,0.061]
[1693689722210,5.495,1638.0,1637.9,0.061]
[1693689723210,5.49936651,1638.0,1637.9,0.061]
[1693689723414,5.49936651,1638.0,1637.9,4.84307639]
[1693689723709,5.49936651,1638.0,1637.9,0.061]
[1693689724610,5.49936651,1638.0,1637.8,7.78207639]
[1693689724804,5.495,1637.9,1637.8,7.78207639]
[1693689725414,5.495,1637.9,1637.8,3.0]
[1693689725614,5.495,1637.9,1637.7,4.78207639]
[1693689725812,5.495,1637.8,1637.7,4.78207639]
[1693689726005,6.02239991,1637.8,1637.7,4.78207639]
[1693689727215,6.02239991,1637.8,1637.7,7.64923991]
[1693689727820,6.02239991,1637.8,1637.7,4.78207639]
[1693689729014,5.10600442,1637.8,1637.7,7.64923991]
[1693689730516,5.10600442,1637.8,1637.7,4.78207639]
[1693689730713,2.96773537,1637.8,1637.7,8.44610271]
[1693689731809,2.96773537,1637.8,1637.7,5.57893919]
[1693689732010,2.96773537,1637.8,1637.7,8.44610271]
[1693689732715,2.96773537,1637.8,1637.7,5.57893919]
[1693689733118,2.96773537,1637.8,1637.7,8.44610271]
[1693689734021,2.972086,1637.8,1637.7,8.44610271]
[1693689734524,2.972086,1637.8,1637.7,5.57893919]
[1693689734918,2.972086,1637.8,1637.7,8.44610271]
[1693689738821,2.972086,1637.8,1637.7,7.6565484]
[1693689739321,2.972086,1637.8,1637.7,4.78938488]
[1693689739726,2.972086,1637.8,1637.7,7.6565484]
[1693689742019,2.972086,1637.8,1637.7,10.71126816]
[1693689744130,2.972086,1637.8,1637.7,7.84410464]
[1693689744336,1.44472811,1637.8,1637.7,10.71126816]
[1693689744825,4.06862811,1637.8,1637.7,10.71126816]
[1693689745031,4.06862811,1637.8,1637.7,7.84410464]
[1693689745527,4.06862811,1637.8,1637.7,10.71126816]
[1693689745724,4.06862811,1637.8,1637.7,11.50082247]
[1693689747531,6.49632811,1637.8,1637.7,11.50082247]
[1693689749032,6.49632811,1637.8,1637.7,8.63365895]
[1693689750032,6.49632811,1637.8,1637.7,3.05471976]
[1693689751135,6.49632811,1637.8,1637.7,7.04774675]
[1693689751732,6.49632811,1637.8,1637.7,3.05471976]
[1693689751933,6.49632811,1637.8,1637.7,3.05516014]
[1693689752431,6.49632811,1637.8,1637.6,3.05516014]
[1693689752635,5.58335054,1637.8,1637.7,3.05516014]
[1693689752838,11.07835054,1637.8,1637.6,3.05516014]
[1693689753031,5.58335054,1637.8,1637.7,3.05516014]
[1693689753230,21.07835054,1637.8,1637.7,3.05515121]
[1693689753530,21.07835054,1637.8,1637.6,3.05515121]
[1693689753832,15.58335054,1637.8,1637.7,3.05515121]
[1693689754032,5.495,1637.6,1637.5,0.1636]
[1693689754234,10.99,1637.6,1637.5,3.21875875]
[1693689755129,10.99433345,1637.6,1637.5,3.21875875]
[1693689757634,10.99433345,1637.6,1637.5,3.05515875]
[1693689761136,10.99433345,1637.6,1637.4,10.9086893]
[1693689761338,5.49933345,1637.6,1637.5,3.05515875]
[1693689761540,10.99433345,1637.6,1637.5,3.05515875]
[1693689764338,20.99433345,1637.6,1637.2,13.86505268]
[1693689764538,5.495,1637.3,1637.2,8.28611349]
[1693689764837,3.35606282,1637.3,1637.2,11.15327701]
[1693689765042,3.35606282,1637.3,1637.2,8.28611349]
[1693689765244,3.36037373,1637.3,1637.2,8.28611349]
[1693689765640,3.36037373,1637.3,1637.2,7.79243055]
[1693689766741,3.36037373,1637.3,1637.2,3.0]
[1693689774346,5.49931091,1637.3,1637.2,10.65959407]
[1693689776147,5.49931091,1637.3,1637.2,5.86716352]
[1693689783356,5.49931091,1637.3,1637.2,10.65959407]
[1693689784247,3.9715603,1637.3,1637.2,10.65959407]
[1693689784457,3.9715603,1637.3,1637.2,13.7150986]
[1693689785056,3.97572274,1637.3,1637.2,13.7150986]
[1693689785356,3.97572274,1637.3,1637.2,8.92266805]
[1693689785556,3.97572274,1637.3,1637.2,13.70509326]
[1693689789157,3.05906304,1637.3,1637.2,13.70509326]
[1693689792564,0.00416244,1637.3,1637.2,13.70509326]
[1693689793055,8.37709641,1637.4,1637.2,13.70509326]
[1693689793263,8.37709641,1637.4,1637.3,3.05549834]
[1693689794265,8.3812655,1637.4,1637.3,3.05549834]
[1693689795361,8.3812655,1637.4,1637.3,7.83792974]
[1693689795565,8.3812655,1637.4,1637.3,7.84478058]
[1693689797370,8.3812655,1637.4,1637.3,10.11471706]
[1693689798162,8.3812655,1637.4,1637.3,5.32546349]
[1693689806380,7.89216909,1637.4,1637.3,10.17581706]
[1693689811887,2.39716909,1637.4,1637.3,10.17581706]
[1693689812080,2.39716909,1637.4,1637.3,7.84478058]
[1693689817589,4.80036909,1637.4,1637.3,7.84478058]
[1693689821389,4.80036909,1637.4,1637.3,8.6429895]
[1693689821980,10.29536909,1637.4,1637.3,8.6429895]
[1693689824294,8.76764901,1637.4,1637.3,8.6429895]
[1693689828389,8.76764901,1637.4,1637.3,13.43954036]
[1693689828595,8.76764901,1637.4,1637.3,7.85207787]
[1693689832593,8.76764901,1637.4,1637.3,4.79643928]
[1693689832793,8.76764901,1637.4,1637.3,7.85187497]
[1693689836501,8.76764901,1637.4,1637.3,8.65128152]
[1693689841900,3.27264901,1637.4,1637.3,8.65128152]
[1693689843609,3.27264901,1637.4,1637.3,7.85259631]
[1693689848205,3.27264901,1637.4,1637.3,3.05544629]
[1693689848413,3.27264901,1637.4,1637.3,7.85303932]
[1693689849004,2.35601488,1637.4,1637.3,7.85303932]
[1693689849200,2.3600174,1637.4,1637.3,7.85303932]
[1693689850612,2.3600174,1637.4,1637.3,8.65263816]
[1693689855214,10.0,1637.1,1636.9,0.48397723]
[1693689855409,5.495,1637.0,1636.9,4.0019634]
[1693689855609,5.495,1637.0,1636.6,2.7803]
[1693689855910,5.495,1636.7,1636.6,2.7803]
[1693689857112,5.49877499,1636.7,1636.6,2.7803]
[1693689857713,5.49877499,1636.7,1636.6,0.2852]
[1693689861806,5.49877499,1636.7,1636.6,2.67639294]
[1693689864320,3.97026684,1636.7,1636.6,2.67639294]
[1693689865716,3.97026684,1636.7,1636.6,1.87736899]
[1693689867118,5.495,1636.6,1636.5,1.59216899]
[1693689867325,10.99,1636.6,1636.5,1.59216899]
[1693689867917,20.99,1636.6,1636.3,2.38735886]
[1693689868120,20.99,1636.6,1636.4,1.59157257]
[1693689868121,0.0037533,1636.5,1636.4,1.59157257]
[1693689868320,5.4987533,1636.5,1636.3,3.97893143]
[1693689868621,5.495,1636.4,1636.3,1.59157257]
[1693689869219,5.495,1636.4,1636.3,3.97893143]
[1693689870925,5.495,1636.4,1636.3,1.59157257]
[1693689872322,5.495,1636.4,1636.3,3.97893143]
[1693689872918,3.35480982,1636.4,1636.3,3.97893143]
[1693689873827,3.35480982,1636.4,1636.3,2.38735886]
[1693689874914,3.35480982,1636.4,1636.3,3.97645522]
[1693689875425,3.35480982,1636.4,1636.3,7.03392256]
[1693689878328,3.35480982,1636.4,1636.3,4.6465637]
[1693689882021,3.35480982,1636.4,1636.3,1.58909636]
[1693689883230,3.35855517,1636.4,1636.3,1.58909636]
[1693689884631,3.84906603,1636.4,1636.3,1.58909636]
[1693689887740,3.84906603,1636.4,1636.3,1.58914051]
[1693689888241,3.84906603,1636.4,1636.3,4.64668922]
[1693689888735,3.84906603,1636.4,1636.3,1.58914051]
[1693689891938,3.84906603,1636.4,1636.2,4.98671077]
[1693689892143,5.495,1636.3,1636.2,4.98671077]
[1693689892442,5.495,1636.3,1636.2,8.04426295]
[1693689893842,5.495,1636.3,1636.2,8.8388332]
[1693689895843,5.495,1636.3,1636.2,9.63340346]
[1693689898150,5.49873739,1636.3,1636.2,9.63340346]
[1693689898842,5.49873739,1636.3,1636.2,5.66055218]
[1693689900247,5.49873739,1636.3,1636.2,8.5277157]
[1693689900748,5.08043739,1636.3,1636.2,13.29513724]
[1693689900944,0.49051086,1636.4,1636.2,8.5277157]
[1693689901143,0.49333129,1636.7,1636.3,17.68275648]
[1693689901445,13.795,1636.8,1636.3,17.68275648]
[1693689901446,13.795,1636.8,1636.5,4.85681366]
[1693689901750,0.93572847,1636.9,1636.8,0.0611]
[1693689901950,5.495,1636.9,1636.8,0.0611]
[1693689902152,5.495,1636.9,1636.8,8.25575218]
[1693689903457,5.495,1636.9,1636.8,8.25480002]
[1693689904350,3.96670442,1636.9,1636.8,12.18727584]
[1693689904753,3.96670442,1636.9,1636.8,12.18746166]
[1693689909255,3.97020234,1636.9,1636.8,12.18746166]
[1693689909761,3.97020234,1636.9,1636.8,11.44742225]
[1693689910957,3.97020234,1636.9,1636.8,12.18746166]
[1693689911860,3.97020234,1636.9,1636.8,8.25480002]
[1693689912365,3.97020234,1636.9,1636.8,11.44612975]
[1693689914768,3.97020234,1636.9,1636.8,6.24792975]
[1693689914966,3.97020234,1636.9,1636.8,5.51054967]
[1693689915973,3.97020234,1636.9,1636.8,8.37771319]
[1693689918176,4.47127517,1636.9,1636.8,8.37771319]
[1693689919876,4.47127517,1636.9,1636.8,5.98486354]
[1693689920076,4.47127517,1636.9,1636.8,8.37771319]
[1693689921774,4.47127517,1636.9,1636.8,5.98486354]
[1693689921974,4.47127517,1636.9,1636.8,8.37771319]
[1693689923377,4.47127517,1636.9,1636.8,8.37637291]
[1693689924774,7.02327517,1636.9,1636.8,8.37637291]
[1693689928878,13.795,1637.7,1637.1,3.0611]
[1693689929082,13.795,1637.7,1637.0,7.495]
[1693689929083,19.29,1637.7,1637.4,2.45013569]
[1693689929283,18.6791,1637.7,1637.6,2.45013569]
[1693689929585,18.6791,1637.7,1637.6,3.11764576]
[1693689929586,5.495,1637.7,1637.6,3.11764576]
[1693689931583,8.1147,1637.9,1637.6,3.11630347]
[1693689931775,8.1147,1637.9,1637.7,5.1371]
[1693689932183,0.00377715,1637.8,1637.7,5.1371]
[1693689943091,0.00377715,1637.8,1637.7,2.86716352]
[1693689944295,8.59281023,1637.9,1637.8,0.00050581]
[1693689945291,8.5963053,1637.9,1637.8,0.00050581]
[1693689964310,8.5963053,1637.9,1637.6,0.0611]
[1693689964610,5.495,1637.7,1637.6,0.0611]
[1693689964802,5.495,1637.7,1637.6,3.11650721]
[1693689965105,5.495,1637.7,1637.6,5.98367073]
[1693689965301,5.49840237,1637.7,1637.6,8.30565339]
[1693689965509,5.49840237,1637.7,1637.6,8.36675339]
[1693689966906,5.49840237,1637.7,1637.6,5.49958987]
[1693689967606,5.49840237,1637.7,1637.6,8.36675339]
[1693689971015,5.49840237,1637.7,1637.6,9.16111428]
[1693689971909,0.00340237,1637.7,1637.6,9.16111428]
[1693689973418,0.00340237,1637.7,1637.6,9.95547516]
[1693689974023,0.01340237,1637.7,1637.6,9.95547516]
[1693689974420,0.01340237,1637.7,1637.6,5.98367073]
[1693689974820,0.01340237,1637.7,1637.6,9.97818616]
[1693689975122,0.01340237,1637.7,1637.6,5.98367073]
[1693689975323,0.01340237,1637.7,1637.6,9.97818639]
[1693689978221,0.01340237,1637.7,1637.6,9.17929334]
[1693689978929,0.51157838,1637.7,1637.6,9.17929334]
[1693689979627,2.10460955,1637.7,1637.6,9.17929334]
[1693689980427,2.09460955,1637.7,1637.6,9.17929334]
[1693689981823,2.10460955,1637.7,1637.6,9.17929334]
[1693689984323,4.48415631,1637.7,1637.6,9.17929334]
[1693689985422,4.48415631,1637.7,1637.6,8.38083881]
[1693689985423,2.89112514,1637.7,1637.6,8.38083881]
[1693689985621,9.1721752,1637.9,1637.6,15.47318639]
[1693689985622,6.19653142,1637.9,1637.6,15.47318639]
[1693689985824,2.77549871,1638.0,1637.9,0.0611]
[1693689986027,1.60222118,1638.0,1637.9,8.37878594]
[1693689986319,0.00329517,1638.0,1637.9,11.44690375]
[1693689986521,0.00329517,1638.0,1637.9,12.24555419]
[1693689986722,0.00329517,1638.0,1637.9,11.4456122]
[1693689991929,0.00329517,1638.0,1637.9,16.9406122]
[1693689993220,0.00329517,1638.0,1637.9,16.13928396]
[1693690002942,0.00329517,1638.0,1637.9,16.8795122]
[1693690003136,0.00329517,1638.0,1637.9,16.9405122]